fUST/lending_fUST_20240402
["ID","MTS","AMOUNT","RATE_DAILY","PERIOD"]
[321282339,1712064644079,-1693.14168249,0.00025979,2]
[321282343,1712064644125,-386.62193796,0.00025979,2]
[321282382,1712064648207,-1298.0,0.00025979,2]
[321282384,1712064667578,13254.95453077,0.0003,30]
[321282388,1712064750064,1000.0,0.00029,3]
[321282391,1712064781147,1000.0,0.00029,3]
[321282394,1712064815132,1346.03856008,0.00029,3]
[321282395,1712064889362,2000.0,0.00028,3]
[321282396,1712064901158,2000.0,0.00028,3]
[321282397,1712064944960,585.642179,0.00030137,120]
[321282398,1712064945914,155.25508545,0.00025878,2]
[321282399,1712064950116,687.64045964,0.00025877,2]
[321282400,1712064981889,1260.38,0.00028,3]
[321282402,1712065016746,8705.4609648,0.00024953,2]
[321282440,1712065290587,2000.0,0.00028,3]
[321282442,1712065296175,2000.0,0.00028,3]
[321282443,1712065298586,2000.0,0.00028,3]
[321282446,1712065375730,2000.0,0.00028,3]
[321282473,1712065385434,2000.0,0.00028,3]
[321282502,1712065419645,6019.0,0.00025108,2]
[321282503,1712065451103,242.23655039,0.000259,2]
[321282504,1712065453162,866.66281242,0.000259,2]
[321282505,1712065456280,192.5874711,0.000259,2]
[321282506,1712065458354,934.14841258,0.000259,2]
[321282507,1712065460238,331.18577868,0.000259,2]
[321282509,1712065469760,155.02635448,0.000259,2]
[321282510,1712065470371,439.231634,0.00030137,120]
[321282511,1712065471867,155.02635448,0.000259,2]
[321282512,1712065472423,215.29396627,0.000259,2]
[321282513,1712065478049,561.53753121,0.000259,2]
[321282514,1712065494731,276.44319995,0.000259,2]
[321282515,1712065497259,1960.01777038,0.000259,2]
[321282516,1712065500659,3710.75027405,0.000259,2]
[321282517,1712065504540,158.18477113,0.000259,2]
[321282518,1712065510948,326.8183876,0.00025899,2]
[321282519,1712065533262,408.8818563,0.00024952,2]
[321282553,1712065762949,421.44472,0.00025683,2]
[321282554,1712065763183,226.3706345,0.000259,2]
[321282718,1712065833758,-645.37364718,0.00025955,2]
[321282719,1712065833768,-1204.62635282,0.00025956,2]
[321282720,1712065833780,-1720.64336373,0.00025956,2]
[321282721,1712065833790,-300.0,0.00025977,2]
[321282722,1712065833799,-300.0,0.00025977,2]
[321282723,1712065833809,-935.85663627,0.00025978,2]
[321282724,1712065833821,-46562.8510202,0.00025978,2]
[321282725,1712065833831,-450.73535203,0.00025978,2]
[321282727,1712065833841,-372.90886046,0.00025978,2]
[321282728,1712065833851,-353.99827844,0.00025978,2]
[321282729,1712065833860,-193.17229372,0.00025978,2]
[321282731,1712065833870,-10162.78842978,0.00025979,2]
[321282732,1712065833879,-721.90725782,0.00026874,2]
[321282734,1712065833890,-396.39215654,0.00026874,2]
[321282736,1712065833899,-242.23655039,0.00028113,2]
[321282738,1712065833909,-300.0,0.00028114,2]
[321282739,1712065833919,-276.44319995,0.00028571,2]
[321282740,1712065834001,-1960.01777038,0.00028572,2]
[321282741,1712065834016,-192.5874711,0.00028573,2]
[321282742,1712065834027,-331.18577868,0.00028573,2]
[321282743,1712065834040,-224.0,0.00028575,2]
[321282744,1712065834052,-226.3706345,0.000309,2]
[321282745,1712065834063,-463.70000041,0.00034,4]
[321282746,1712065834074,-594.91155692,0.00035159,2]
[321282747,1712065834084,-439.231634,0.0003516,120]
[321282748,1712065834095,-244.52483239,0.00035335,2]
[321282749,1712065834105,-1000.0,0.000358,6]
[321282750,1712065834115,-1333.57337654,0.000363,6]
[321282751,1712065834125,-150.0,0.00036335,2]
[321282752,1712065834134,-202.17296299,0.00036436,4]
[321282753,1712065834144,-153.0,0.00036482,2]
[321282754,1712065834154,-153.0,0.00036712,2]
[321282755,1712065834164,-153.0,0.00036756,2]
[321282756,1712065834174,-306.0,0.00036786,2]
[321282757,1712065834184,-306.0,0.00036786,2]
[321282758,1712065834194,-153.0,0.00036786,2]
[321282759,1712065834204,-153.0,0.00036804,2]
[321282760,1712065834214,-153.0,0.00036804,2]
[321282761,1712065834224,-153.0,0.00036804,2]
[321282762,1712065834238,-153.0,0.00036804,2]
[321282763,1712065834247,-153.0,0.00036804,2]
[321282764,1712065834257,-153.0,0.00036804,2]
[321282766,1712065834266,-153.0,0.00036804,2]
[321282768,1712065834276,-9142.691514,0.00037,2]
[321282770,1712065834285,-150.0,0.00037335,2]
[321282772,1712065834295,-155.39598304,0.00037587,4]
[321282774,1712065834304,-153.0,0.00037699,2]
[321282776,1712065834314,-153.0,0.00037699,2]
[321282778,1712065834323,-153.0,0.00037699,2]
[321282780,1712065834332,-153.0,0.00037699,2]
[321282782,1712065834343,-153.0,0.00037699,2]
[321282784,1712065834356,-153.0,0.00037699,2]
[321282785,1712065834366,-153.0,0.00037699,2]
[321282787,1712065834375,-153.0,0.00037699,2]
[321282789,1712065834385,-153.0,0.00037699,2]
[321282792,1712065834394,-153.0,0.00037699,2]
[321282793,1712065834404,-153.0,0.00037699,2]
[321282795,1712065834413,-153.0,0.00037699,2]
[321282797,1712065834422,-153.0,0.00037699,2]
[321282799,1712065834431,-153.0,0.00037699,2]
[321282801,1712065834441,-153.0,0.00037699,2]
[321282803,1712065834450,-153.0,0.00037699,2]
[321282805,1712065834460,-153.0,0.00037699,2]
[321282807,1712065834470,-153.0,0.00037699,2]
[321282810,1712065834480,-153.0,0.00037699,2]
[321282811,1712065834493,-153.0,0.00037699,2]
[321282813,1712065834503,-153.0,0.00037699,2]
[321282816,1712065834513,-153.0,0.00037699,2]
[321282818,1712065834522,-153.0,0.00037699,2]
[321282820,1712065834531,-153.0,0.00037699,2]
[321282821,1712065834540,-153.0,0.00037699,2]
[321282824,1712065834551,-153.0,0.00037699,2]
[321282825,1712065834563,-306.0,0.00037699,2]
[321282827,1712065834573,-153.0,0.00037699,2]
[321282829,1712065834582,-153.0,0.00037699,2]
[321282830,1712065834590,-153.0,0.00037749,2]
[321282832,1712065834599,-310.27042927,0.00037838,4]
[321282834,1712065834608,-153.0,0.00037849,2]
[321282836,1712065834619,-153.0,0.000379,2]
[321282838,1712065834628,-153.0,0.000379,2]
[321282840,1712065834638,-166.84386395,0.00037972,3]
[321282842,1712065834647,-1000.0,0.00038,7]
[321282844,1712065834656,-3931.34859906,0.00038,60]
[321283116,1712065840101,-386.98940094,0.00038,60]
[321283118,1712065840111,-151.0,0.00038,2]
[321283120,1712065840120,-151.0,0.00038,2]
[321283122,1712065840130,-151.0,0.00038,2]
[321283124,1712065840141,-152.69801,0.00038,2]
[321283126,1712065840150,-151.0,0.00038,2]
[321283128,1712065840160,-184.60653,0.00038,2]
[321283130,1712065840169,-171.68775828,0.00038,2]
[321283392,1712065842868,572.06090413,0.000259,5]
[321283771,1712065846106,-12.91877172,0.00038,2]
[321283773,1712065846115,-502.817594,0.00038,2]
[321283775,1712065846123,-130.01363428,0.00038,2]
[321287537,1712065963041,2000.0,0.00034,56]
[321287543,1712066032326,3087.85627332,0.0002,2]
[321287581,1712066057106,341.69048828,0.000195,2]
[321287582,1712066059971,2563.24271846,0.000125,2]
[321287595,1712066079123,1443.84188462,0.0002,120]
[321287604,1712066200343,219.615817,0.00031108,120]
[321287647,1712066672995,164.711862,0.00031849,120]
[321287658,1712066942656,1539.44664655,0.000341,56]
[321287841,1712067038320,-2084.38029146,0.00027411,2]
[321287843,1712067038331,-1482.50817465,0.00027411,2]
[321287845,1712067038343,-240.16900843,0.00027412,2]
[321287847,1712067038356,-185.17273563,0.00027412,2]
[321287849,1712067038367,-523.63000377,0.00027412,2]
[321287851,1712067038377,-2020.5397861,0.00027413,2]
[321287980,1712067040858,-1690.21048795,0.00027413,2]
[321287982,1712067040870,-536.78158273,0.00027414,2]
[321287984,1712067040880,-155.0,0.00027414,2]
[321287986,1712067040889,-276.44319995,0.00027415,2]
[321287988,1712067040899,-472.30961185,0.00027415,2]
[321287992,1712067040922,-149.23373712,0.00027416,2]
[321287996,1712067040961,-980.4009421,0.00027416,2]
[321288000,1712067040982,-1352.5748179,0.000275,2]
[321288004,1712067041014,-1745.94724081,0.000275,2]
[321288007,1712067041036,-154.98450055,0.0003,2]
[321288010,1712067041057,-514.4165038,0.00030213,2]
[321288013,1712067041075,-872.8958284,0.00031122,2]
[321288016,1712067041097,-168.568026,0.00031164,2]
[321288019,1712067041117,-174.507178,0.00031308,2]
[321288021,1712067041138,-210.72236,0.00031521,2]
[321288025,1712067041163,-635.20301271,0.00031849,4]
[321288027,1712067041179,-133.19161933,0.00031849,4]
[321288031,1712067041208,-2496.02387978,0.00031849,4]
[321288034,1712067041226,-741.48688178,0.00032,2]
[321288036,1712067041239,-6552.52254714,0.00032244,2]
[321288181,1712067043288,-620.47449973,0.0002741,2]
[321288189,1712067043356,-1339.54327065,0.0002741,2]
[321288191,1712067043371,-360.07903834,0.0002741,2]
[321288193,1712067043386,-6128.59417226,0.00032244,2]
[321288195,1712067043402,-463.70000041,0.00034,4]
[321288197,1712067043503,-159.81808305,0.00034099,7]
[321288198,1712067043512,-4612.46543529,0.000341,4]
[321288199,1712067043524,-867.74240916,0.000341,4]
[321288235,1712067098959,153.52146427,0.00027315,60]
[321288248,1712067437821,317.41762595,0.000279,3]
[321288286,1712067789346,164.711862,0.00032753,120]
[321288403,1712068232916,-276.44319995,0.0002728,2]
[321288405,1712068232925,-472.30961185,0.00027281,2]
[321288407,1712068232935,-331.18577868,0.00027281,2]
[321288409,1712068232944,-155.0,0.00027281,2]
[321288411,1712068232954,-494.32458786,0.00030653,2]
[321288413,1712068232963,-1917.1641716,0.0003171,2]
[321288415,1712068232973,-197.1340455,0.00032591,2]
[321288417,1712068232983,-9344.58071121,0.00032753,4]
[321288419,1712068232996,-16320.34987179,0.00032753,4]
[321288420,1712068233005,-200.0,0.00032753,2]
[321288421,1712068233015,-6247.8336397,0.00032753,2]
[321288422,1712068233024,-326.83813069,0.000341,4]
[321288423,1712068233033,-629.06925,0.00034119,2]
[321288424,1712068233043,-1003.29630119,0.00034432,2]
[321288425,1712068233052,-494.32458786,0.00035653,2]
[321288426,1712068233061,-170.239067,0.00035859,2]
[321288427,1712068233071,-1333.33333333,0.000363,6]
[321288428,1712068233080,-290.7415455,0.00037198,2]
[321288430,1712068233090,-153.0,0.00037198,2]
[321288431,1712068233099,-153.0,0.00037198,2]
[321288432,1712068233109,-153.0,0.00037205,2]
[321288433,1712068233118,-153.0,0.00037205,2]
[321288434,1712068233127,-153.0,0.00037205,2]
[321288435,1712068233136,-153.0,0.00037205,2]
[321288436,1712068233145,-153.0,0.00037205,2]
[321288437,1712068233156,-153.0,0.00037205,2]
[321288438,1712068233165,-153.0,0.00037205,2]
[321288439,1712068233174,-153.0,0.00037205,2]
[321288440,1712068233183,-153.0,0.00037205,2]
[321288441,1712068233192,-153.0,0.00037205,2]
[321288442,1712068233202,-153.0,0.00037205,2]
[321288443,1712068233211,-153.0,0.00037205,2]
[321288444,1712068233221,-153.0,0.00037205,2]
[321288445,1712068233230,-153.0,0.00037205,2]
[321288446,1712068233239,-153.0,0.00037205,2]
[321288447,1712068233248,-153.0,0.00037205,2]
[321288448,1712068233257,-153.0,0.00037278,2]
[321288449,1712068233267,-153.0,0.00037378,2]
[321288450,1712068233276,-153.0,0.00037378,2]
[321288451,1712068233286,-153.0,0.00037534,2]
[321288452,1712068233295,-153.0,0.00037534,2]
[321288453,1712068233304,-153.0,0.00037534,2]
[321288454,1712068233314,-153.0,0.00037534,2]
[321288455,1712068233324,-166.89557919,0.0003762,3]
[321288456,1712068233333,-153.0,0.000378,2]
[321288457,1712068233342,-1000.0,0.00037861,2]
[321288458,1712068233353,-202.404201,0.00037945,2]
[321288459,1712068233362,-202.404201,0.00037945,2]
[321288460,1712068233371,-23329.68980664,0.00037961,4]
[321288482,1712068238506,-326.56538573,0.00037961,4]
[321288904,1712068243606,-2674.07423157,0.00037961,4]
[321297302,1712069394919,164.711862,0.00030626,120]
[321297381,1712069432713,-867.10470831,0.00031448,4]
[321297384,1712069432723,-2168.37592058,0.00031449,4]
[321297388,1712069432734,-87.219366,0.0003145,4]
[321297392,1712069432747,-1665.80257888,0.0003145,4]
[321297395,1712069432756,-1255.09383648,0.0003145,4]
[321297398,1712069432765,-2698.67917074,0.0003145,4]
[321297401,1712069432775,-2588.68185367,0.00031451,4]
[321297403,1712069432785,-155.00155002,0.00031452,4]
[321297406,1712069432795,-155.00155002,0.00031452,4]
[321297409,1712069432804,-216.68778069,0.00031452,4]
[321297411,1712069432813,-314.534625,0.00031454,2]
[321297413,1712069432823,-194.55082026,0.00031607,2]
[321297414,1712069432832,-48892.95111786,0.00031707,4]
[321297421,1712069432890,-1841.66039267,0.00031707,4]
[321297689,1712069438629,-200.0,0.00030626,2]
[321297691,1712069438639,-8030.02238245,0.00031707,4]
[321298222,1712069447542,-164.77486262,0.00029607,2]
[321298223,1712069447551,-337.53107222,0.00031707,4]
[321298225,1712069447563,-4715.67641585,0.00031707,4]
[321298227,1712069447573,-8479.32358415,0.00031708,2]
[321298913,1712069633659,6852.58912094,0.0002,2]
[321298935,1712069661321,15058.02111804,0.0002,2]
[321298936,1712069661355,4044.02007302,0.0002,2]
[321298937,1712069667106,200.0,0.0002,2]
[321298938,1712069671299,377.85,0.00012,7]
[321298948,1712069674996,19102.04119106,0.0002,2]
[321298951,1712069681122,200.0,0.0002,2]
[321298955,1712069693010,2311.31518456,0.0002,2]
[321298958,1712069703611,200.0,0.0002,2]
[321298972,1712069718131,200.0,0.0002,2]
[321298975,1712069738132,200.0,0.0002,2]
[321299028,1712069754717,200.0,0.0002,2]
[321299045,1712069777780,200.0,0.0002,2]
[321299057,1712069797773,200.0,0.0002,2]
[321299075,1712069817779,200.0,0.0002,2]
[321299149,1712069833789,200.0,0.0002,2]
[321299161,1712069853782,200.0,0.0002,2]
[321299169,1712069874726,200.0,0.0002,2]
[321299174,1712069898898,200.0,0.0002,2]
[321299176,1712069912236,164.711862,0.00030137,120]
[321299382,1712070632842,-523.63000377,0.0002809,2]
[321299383,1712070632852,-242.23655039,0.00028091,2]
[321299384,1712070632861,-206.87506116,0.00028091,2]
[321299385,1712070632870,-2436.1987006,0.00028091,2]
[321299386,1712070632881,-1274.55157345,0.00028091,2]
[321299387,1712070632891,-214.41229815,0.00028092,2]
[321299388,1712070632900,-1142.90563529,0.00028092,2]
[321299422,1712070638783,-240.16900843,0.00028089,2]
[321299423,1712070638793,-155.01550155,0.00028089,2]
[321299424,1712070638802,-4412.50568966,0.00028092,2]
[321299425,1712070638812,-360.07903834,0.00028093,2]
[321299426,1712070638821,-1960.01777038,0.00028093,2]
[321299427,1712070638830,-331.18577868,0.00028094,2]
[321299428,1712070638840,-685.74947039,0.00028094,2]
[321299429,1712070638849,-155.01550155,0.00028094,2]
[321299430,1712070638859,-271.29502926,0.00028095,2]
[321299431,1712070638869,-206.87506116,0.00028095,2]
[321299432,1712070638879,-300.0,0.00028096,2]
[321299433,1712070638888,-300.0,0.00028096,2]
[321299434,1712070638898,-314.534625,0.00028103,2]
[321299435,1712070638907,-187.85775368,0.00028319,2]
[321299436,1712070638916,-1165.75148064,0.00028327,2]
[321299437,1712070638925,-180.0,0.00028437,2]
[321299438,1712070638934,-363.03730881,0.00028437,2]
[321299439,1712070638944,-5367.68090307,0.00028438,2]
[321299440,1712070638956,-1584.09045413,0.00028438,2]
[321300022,1712070644319,-14404.8334328,0.00028438,2]
[321300024,1712070644329,-2002.1781068,0.00028951,2]
[321300026,1712070644338,-1741.35457995,0.00029056,2]
[321300028,1712070644348,-164.77486262,0.00029608,2]
[321300030,1712070644357,-1717.79749241,0.00029888,2]
[321300032,1712070644367,-1003.1241989,0.0002989,2]
[321300034,1712070644377,-5854.79577821,0.0002989,2]
[321300036,1712070644395,-3695.98501426,0.0002989,2]
[321307920,1712070929542,155.00930056,0.00026901,2]
[321307921,1712070947521,155.00930056,0.00026901,2]
[321307922,1712070963526,196.64959063,0.00026901,2]
[321307923,1712070972490,155.00930056,0.00026901,2]
[321307924,1712070974543,313.7797394,0.00026901,2]
[321307925,1712070976921,262.95824243,0.00026901,2]
[321307927,1712070980119,254.35644086,0.00026901,2]
[321307928,1712070986363,213.65773721,0.00026901,2]
[321307929,1712070988512,313.7797394,0.00026901,2]
[321307930,1712070988926,262.95824243,0.00026901,2]
[321307931,1712070996173,254.35644086,0.00026901,2]
[321307932,1712071008536,313.7797394,0.00026901,2]
[321307933,1712071010934,262.95824243,0.00026901,2]
[321307934,1712071012260,254.35644086,0.00026901,2]
[321307935,1712071026518,313.7797394,0.00026901,2]
[321307936,1712071030932,262.95824243,0.00026901,2]
[321307937,1712071032149,254.35644086,0.00026901,2]
[321307964,1712071046534,198.81514339,0.00026901,2]
[321307965,1712071046924,262.95824243,0.00026901,2]
[321307966,1712071048133,254.35644086,0.00026901,2]
[321307967,1712071066926,378.87558716,0.00026901,2]
[321307968,1712071068134,254.35644086,0.00026901,2]
[321308021,1712071088138,383.84579977,0.00026901,2]
[321308030,1712071226874,200.0,0.00026791,2]
[321308031,1712071234101,24900.0,0.00026788,2]
[321308072,1712071352835,3000.0,0.00026757,2]
[321308074,1712071365238,250.0,0.00026791,2]
[321308075,1712071381643,174.897896,0.00026461,2]
[321308076,1712071392547,901.9934852,0.00026681,2]
[321308174,1712071501334,533.26502584,0.00026681,2]
[321308186,1712071527830,17228.08727314,0.0003,30]
[321308240,1712071713583,-325.20882466,0.00038354,120]
[321308241,1712071713603,-345.64236572,0.00038354,120]
[321308242,1712071713623,-2329.14880962,0.00038354,120]
[321308394,1712071838053,-1482.50817465,0.00026662,2]
[321308396,1712071838063,-1960.01777038,0.00026662,2]
[321308398,1712071838072,-242.23655039,0.00026663,2]
[321308400,1712071838082,-155.00930056,0.00026663,2]
[321308402,1712071838092,-300.0,0.00026664,2]
[321308404,1712071838101,-192.5874711,0.00026664,2]
[321308406,1712071838110,-300.0,0.00026664,2]
[321308408,1712071838119,-206.87506116,0.00026665,2]
[321308410,1712071838128,-1751.66567176,0.00026665,2]
[321308605,1712071840101,-1959.08460229,0.00026665,2]
[321308615,1712071840171,-215.29396627,0.00026665,2]
[321308617,1712071840199,-5492.7629709,0.00026677,2]
[321308619,1712071840209,-1613.7058529,0.00026969,2]
[321308621,1712071840218,-171.333637,0.00027041,2]
[321308623,1712071840228,-3950.20530392,0.00027089,2]
[321308626,1712071840242,-4934.2603818,0.00027089,2]
[321308912,1712071843071,-1228.51465239,0.00027089,2]
[321308919,1712071843130,-2162.66980079,0.00027089,2]
[321308921,1712071843139,-3036.4669756,0.000279,2]
[321308923,1712071843149,-420.0,0.00028837,2]
[321308925,1712071843158,-420.0,0.00028837,2]
[321308928,1712071843168,-600.0,0.00029,7]
[321308931,1712071843177,-8514.86322361,0.0002989,2]
[321309260,1712071846444,-6174.89262275,0.0002989,2]
[321315618,1712071933882,26894.99129749,0.0003,30]
[321315619,1712071943983,8472.29146992,0.00025407,10]
[321315620,1712071944008,11527.70853008,0.00025407,10]
[321315625,1712071962559,10942.62355136,0.00025407,2]
[321315626,1712071962599,5075.39230392,0.00025407,2]
[321315627,1712071964997,155.00775039,0.00025407,2]
[321315628,1712071967865,533.26502584,0.00025407,2]
[321315631,1712071982573,16018.01585528,0.00025407,2]
[321315632,1712071982973,194.33507636,0.00025407,2]
[321315633,1712071985860,400.30769063,0.00025407,2]
[321315638,1712072000592,16018.01585528,0.00025407,2]
[321315641,1712072020784,4922.82374699,0.00025407,2]
[321315647,1712072286367,155.00465014,0.00025407,2]
[321315648,1712072304321,155.00465014,0.00025407,2]
[321315649,1712072326273,157.79975931,0.00025407,2]
[321315650,1712072432234,313.68218326,0.00025407,2]
[321315654,1712072763795,177.3194243,0.00030137,120]
[321315740,1712073032265,-155.00310006,0.00026585,2]
[321315741,1712073032277,-192.5874711,0.00026586,2]
[321315742,1712073032286,-957.76661944,0.00026587,2]
[321315743,1712073032296,-1482.50817465,0.00026587,2]
[321315745,1712073032305,-472.30961185,0.00026587,2]
[321315747,1712073032314,-1960.01777038,0.00026587,2]
[321315749,1712073032324,-206.87506116,0.00026587,2]
[321315751,1712073032334,-3710.75027405,0.00026588,2]
[321315753,1712073032343,-242.23655039,0.00026589,2]
[321315755,1712073032354,-1613.89122089,0.00026589,2]
[321315757,1712073032365,-645.37364718,0.0002659,2]
[321315759,1712073032376,-300.0,0.0002659,2]
[321315761,1712073032386,-300.0,0.0002659,2]
[321315763,1712073032398,-250.0,0.00026987,2]
[321315765,1712073032409,-172.937621,0.00027069,2]
[321315767,1712073032420,-2161.07001849,0.000279,2]
[321315770,1712073032431,-180.0,0.00028759,2]
[321315772,1712073032442,-313.0,0.00028759,2]
[321315774,1712073032453,-1459.73700905,0.000299,2]
[321315776,1712073032464,-21573.41945616,0.0003,4]
[321315778,1712073032474,-10747.214,0.0003,2]
[321315780,1712073032484,-1801.5259686,0.00030622,4]
[321315782,1712073032494,-489.49728478,0.00030623,4]
[321315783,1712073032504,-688.71264987,0.00030626,4]
[321315786,1712073032515,-1459.73700904,0.00031979,2]
[321315787,1712073032528,-4396.96270992,0.00032707,4]
[321315788,1712073032537,-744.5549481,0.00032877,7]
[321315789,1712073032619,-744.5549481,0.00032877,7]
[321315790,1712073032630,-744.5549481,0.00032877,7]
[321315791,1712073032639,-744.5549481,0.00032877,7]
[321315792,1712073032649,-271.747034,0.00032877,2]
[321315793,1712073032659,-271.747034,0.00032877,2]
[321315794,1712073032668,-151.0,0.00032877,2]
[321315795,1712073032677,-151.0,0.00032877,2]
[321315796,1712073032686,-240.616951,0.00032877,2]
[321315797,1712073032695,-151.0,0.00032877,2]
[321315798,1712073032705,-151.0,0.00032877,2]
[321315799,1712073032714,-151.0,0.00032877,2]
[321315800,1712073032723,-151.0,0.00032877,2]
[321315801,1712073032733,-151.0,0.000329,2]
[321315802,1712073032742,-151.0,0.000329,2]
[321315803,1712073032751,-2161.07001849,0.000329,2]
[321315804,1712073032761,-368.9379195,0.0003399,2]
[321315805,1712073032770,-989.512973,0.00034,2]
[321315806,1712073032781,-989.512973,0.00034,2]
[321315807,1712073032792,-463.70000041,0.00034,4]
[321315808,1712073032802,-156.863164,0.00034057,2]
[321315809,1712073032811,-1459.73700904,0.00034058,2]
[321315810,1712073032820,-538.6,0.00035,2]
[321315811,1712073032830,-1000.0,0.00035,2]
[321315812,1712073032839,-10000.0,0.00035,7]
[321315813,1712073032849,-151.0,0.00035,2]
[321315814,1712073032858,-151.0,0.00035,2]
[321315815,1712073032868,-271.747034,0.00035,2]
[321315816,1712073032878,-271.747034,0.00035,2]
[321315817,1712073032887,-161.598383,0.00035,2]
[321315818,1712073032896,-151.0,0.00035,2]
[321315819,1712073032906,-151.0,0.00035,2]
[321315820,1712073032916,-151.0,0.00035,2]
[321315821,1712073032926,-151.0,0.00035,2]
[321315822,1712073032935,-185.685038,0.00035,2]
[321315823,1712073032944,-151.0,0.00035,2]
[321315824,1712073032954,-151.0,0.00035,2]
[321315825,1712073032963,-989.512973,0.00035,2]
[321315826,1712073032972,-989.512973,0.00035,2]
[321315827,1712073032981,-667.68349657,0.00035,4]
[321315828,1712073032991,-5033.12839892,0.00036,2]
[321315829,1712073033000,-989.512973,0.00036,2]
[321315830,1712073033010,-989.512973,0.00036,2]
[321315831,1712073033019,-306.0,0.00036122,2]
[321315832,1712073033031,-1459.73700904,0.00036137,2]
[321315833,1712073033041,-155.588823,0.00036171,2]
[321315834,1712073033054,-151.0,0.00036171,2]
[321315835,1712073033064,-151.0,0.00036171,2]
[321315836,1712073033074,-657.69143717,0.00036193,2]
[321315837,1712073033086,-271.747034,0.00036193,2]
[321315838,1712073033097,-271.747034,0.00036193,2]
[321315839,1712073033108,-161.598383,0.00036193,2]
[321315840,1712073033119,-151.0,0.00036193,2]
[321315841,1712073033128,-151.0,0.00036193,2]
[321315842,1712073033138,-1638.97093099,0.0003625,2]
[321315843,1712073033147,-1333.36000053,0.000363,6]
[321315844,1712073033157,-1195.75631493,0.000366,4]
[321315845,1712073033167,-151.0,0.000366,2]
[321315846,1712073033176,-151.0,0.000366,2]
[321315847,1712073033185,-989.512973,0.000366,2]
[321315848,1712073033195,-989.512973,0.000366,2]
[321315849,1712073033204,-306.0,0.00036967,2]
[321315850,1712073033213,-151.0,0.00036971,2]
[321315851,1712073033222,-151.0,0.00036971,2]
[321315852,1712073033232,-153.0,0.00036971,2]
[321315853,1712073033241,-153.0,0.00036971,2]
[321315854,1712073033250,-1000.0,0.000375,2]
[321315855,1712073033260,-500.0,0.000375,2]
[321315856,1712073033269,-557.0,0.000375,7]
[321315857,1712073033280,-271.747034,0.000375,2]
[321315858,1712073033289,-271.747034,0.000375,2]
[321315859,1712073033298,-161.598383,0.000375,2]
[321315860,1712073033307,-151.0,0.000375,2]
[321315861,1712073033316,-151.0,0.000375,2]
[321315862,1712073033325,-153.0,0.00037765,2]
[321315863,1712073033335,-151.0,0.000379,2]
[321315864,1712073033345,-151.0,0.000379,2]
[321315865,1712073033354,-2000.0,0.000379,16]
[321315866,1712073033364,-1000.0,0.000379,2]
[321315867,1712073033373,-2000.0,0.0003791,16]
[321315868,1712073033382,-151.0,0.0003791,2]
[321315869,1712073033391,-151.0,0.0003791,2]
[321315870,1712073033400,-989.512973,0.0003791,2]
[321315871,1712073033409,-989.512973,0.0003791,2]
[321315872,1712073033418,-2000.0,0.0003792,16]
[321315873,1712073033428,-271.747034,0.0003792,2]
[321315874,1712073033437,-271.747034,0.0003792,2]
[321315875,1712073033447,-161.598383,0.0003792,2]
[321315876,1712073033456,-151.0,0.0003792,2]
[321315877,1712073033466,-284.335909,0.0003792,2]
[321315878,1712073033474,-151.0,0.0003793,2]
[321315879,1712073033484,-151.0,0.0003793,2]
[321315880,1712073033494,-3859.921095,0.0003793,16]
[321315881,1712073033505,-151.0,0.0003793,2]
[321315882,1712073033514,-989.512973,0.0003793,2]